[Event "*** Titled Tuesday Blitz"]
[Site "Chess.com"]
[Date "2020.04.14"]
[Round "8"]
[White "tornikesanikidze"]
[Black "DraskovicL"]
[Result "1-0"]
[WhiteElo "2377"]
[BlackElo "2551"]
[TimeControl "180+1"]
[EndTime "11:30:09 PDT"]
[Termination "tornikesanikidze won by resignation"]

1. d4 {[%clk 0:03:00.9]} 1... Nf6 {[%clk 0:02:58.2]} 2. c4 {[%clk 0:02:45.7]}
2... e6 {[%clk 0:02:50.1]} 3. Nf3 {[%clk 0:02:44.6]} 3... a6 {[%clk 0:02:48.7]}
4. Nc3 {[%clk 0:02:36.5]} 4... d5 {[%clk 0:02:48.5]} 5. Bg5 {[%clk 0:02:31.1]}
5... Be7 {[%clk 0:02:42]} 6. e3 {[%clk 0:02:31.4]} 6... O-O {[%clk 0:02:40.4]}
7. Qc2 {[%clk 0:02:19.2]} 7... Nbd7 {[%clk 0:02:29.8]} 8. O-O-O {[%clk
0:02:16.4]} 8... c6 {[%clk 0:02:15.2]} 9. Kb1 {[%clk 0:02:13.8]} 9... b5 {[%clk
0:02:12.3]} 10. c5 {[%clk 0:02:13.2]} 10... b4 {[%clk 0:02:11.2]} 11. Ne2 {[%clk
0:02:11.3]} 11... Ne4 {[%clk 0:02:10.6]} 12. Bxe7 {[%clk 0:02:10.4]} 12... Qxe7
{[%clk 0:02:11.5]} 13. Ng3 {[%clk 0:02:10.2]} 13... f5 {[%clk 0:02:10.9]} 14.
Bd3 {[%clk 0:02:07.3]} 14... a5 {[%clk 0:02:09.2]} 15. Ne1 {[%clk 0:02:00.4]}
15... a4 {[%clk 0:01:34.6]} 16. f3 {[%clk 0:01:52.7]} 16... b3 {[%clk
0:01:33.8]} 17. axb3 {[%clk 0:01:51.3]} 17... axb3 {[%clk 0:01:34.7]} 18. Qxb3
{[%clk 0:01:51.7]} 18... Nf2 {[%clk 0:01:32.9]} 19. Rf1 {[%clk 0:01:47.3]} 19...
Nxd1 {[%clk 0:01:29.5]} 20. Qxd1 {[%clk 0:01:48.2]} 20... Ba6 {[%clk 0:01:29.2]}
21. Ne2 {[%clk 0:01:45.1]} 21... Rfb8 {[%clk 0:01:25.3]} 22. Nc3 {[%clk
0:01:39.9]} 22... Nf6 {[%clk 0:01:16.7]} 23. Bxa6 {[%clk 0:01:31.6]} 23... Rxa6
{[%clk 0:01:16.4]} 24. Nd3 {[%clk 0:01:32]} 24... Qb7 {[%clk 0:01:13.6]} 25. Kc2
{[%clk 0:01:19.9]} 25... Ne4 {[%clk 0:01:02.1]} 26. fxe4 {[%clk 0:01:09.2]}
26... fxe4 {[%clk 0:01:00.8]} 27. Qg4 {[%clk 0:01:08.4]} 27... exd3+ {[%clk
0:00:41.6]} 28. Kxd3 {[%clk 0:01:06.9]} 28... Qc8 {[%clk 0:00:29.7]} 29. Rf2
{[%clk 0:01:04.9]} 29... Ra7 {[%clk 0:00:28.9]} 30. e4 {[%clk 0:00:54.8]} 30...
Qe8 {[%clk 0:00:19.8]} 31. Rf6 {[%clk 0:00:35.2]} 31... Re7 {[%clk 0:00:18.3]}
32. Kc2 {[%clk 0:00:30.6]} 32... Qc8 {[%clk 0:00:14.1]} 33. h4 {[%clk
0:00:23.9]} 33... Qb7 {[%clk 0:00:14.2]} 34. Rxe6 {[%clk 0:00:23.1]} 34... Qxb2+
{[%clk 0:00:13.2]} 35. Kd3 {[%clk 0:00:23.5]} 35... Rxe6 {[%clk 0:00:13.4]} 36.
Qxe6+ {[%clk 0:00:23.2]} 36... Kh8 {[%clk 0:00:14]} 37. exd5 {[%clk 0:00:23.5]}
37... Qxg2 {[%clk 0:00:12.1]} 38. dxc6 {[%clk 0:00:21.9]} 38... Qf3+ {[%clk
0:00:10.9]} 39. Kc4 {[%clk 0:00:20]} 39... Qf1+ {[%clk 0:00:09.1]} 40. Qe2
{[%clk 0:00:19.5]} 40... Qa1 {[%clk 0:00:08.4]} 41. c7 {[%clk 0:00:16.4]} 41...
Qa6+ {[%clk 0:00:05.8]} 42. Kd5 {[%clk 0:00:16.8]} 42... Qb7+ {[%clk 0:00:04.9]}
43. Kd6 {[%clk 0:00:17.3]} 43... Rc8 {[%clk 0:00:04.7]} 44. Nd5 {[%clk
0:00:16.7]} 44... Qb5 {[%clk 0:00:03.2]} 45. Qxb5 {[%clk 0:00:16]} 1-0

[Event "*** Titled Tuesday Blitz"]
[Site "Chess.com"]
[Date "2020.04.14"]
[Round "8"]
[White "Jbd735"]
[Black "Kaua18"]
[Result "1-0"]
[WhiteElo "2430"]
[BlackElo "2259"]
[TimeControl "180+1"]
[EndTime "11:30:09 PDT"]
[Termination "Jbd735 won on time"]

1. e4 {[%clk 0:02:52.6]} 1... c5 {[%clk 0:02:29.5]} 2. Nf3 {[%clk 0:02:51.8]}
2... Nc6 {[%clk 0:02:28.5]} 3. d4 {[%clk 0:02:50.6]} 3... cxd4 {[%clk
0:02:23.3]} 4. Nxd4 {[%clk 0:02:51.5]} 4... Nf6 {[%clk 0:02:21.1]} 5. Nc3 {[%clk
0:02:49.3]} 5... e5 {[%clk 0:02:21.4]} 6. Ndb5 {[%clk 0:02:48.9]} 6... d6 {[%clk
0:02:21.7]} 7. Bg5 {[%clk 0:02:48.1]} 7... a6 {[%clk 0:02:21.7]} 8. Na3 {[%clk
0:02:48.7]} 8... Be7 {[%clk 0:02:21.9]} 9. Bxf6 {[%clk 0:02:41.7]} 9... Bxf6
{[%clk 0:02:22.8]} 10. Nc4 {[%clk 0:02:41.8]} 10... Be7 {[%clk 0:02:20]} 11. Ne3
{[%clk 0:02:39.5]} 11... O-O {[%clk 0:02:18]} 12. a4 {[%clk 0:02:34.4]} 12...
Be6 {[%clk 0:02:16.2]} 13. Ncd5 {[%clk 0:02:21.8]} 13... Bg5 {[%clk 0:02:15.2]}
14. Bd3 {[%clk 0:02:16.1]} 14... Ne7 {[%clk 0:02:14.7]} 15. O-O {[%clk
0:01:53.9]} 15... Nxd5 {[%clk 0:02:12.3]} 16. Nxd5 {[%clk 0:01:53.6]} 16... f5
{[%clk 0:01:51.6]} 17. c4 {[%clk 0:01:48.2]} 17... Bxd5 {[%clk 0:01:42.2]} 18.
cxd5 {[%clk 0:01:20.6]} 18... fxe4 {[%clk 0:01:41]} 19. Bxe4 {[%clk 0:01:19.9]}
19... Rf4 {[%clk 0:01:40.7]} 20. Qd3 {[%clk 0:01:12.5]} 20... g6 {[%clk
0:01:40.6]} 21. g3 {[%clk 0:01:10.4]} 21... Rf6 {[%clk 0:01:36.6]} 22. a5 {[%clk
0:01:03.4]} 22... Qc7 {[%clk 0:01:30]} 23. h4 {[%clk 0:01:02.4]} 23... Bh6
{[%clk 0:01:29.7]} 24. Kg2 {[%clk 0:01:02.7]} 24... Rc8 {[%clk 0:01:28.5]} 25.
h5 {[%clk 0:01:02.1]} 25... gxh5 {[%clk 0:01:15.7]} 26. Rh1 {[%clk 0:01:02]}
26... Qf7 {[%clk 0:01:13.4]} 27. Raf1 {[%clk 0:00:48.1]} 27... Rf8 {[%clk
0:00:38.8]} 28. Qe2 {[%clk 0:00:38.6]} 28... Bg7 {[%clk 0:00:16.8]} 29. Rxh5
{[%clk 0:00:35.4]} 29... h6 {[%clk 0:00:13.1]} 30. f3 {[%clk 0:00:33]} 30...
Qxh5 {[%clk 0:00:12.1]} 31. g4 {[%clk 0:00:30.4]} 31... Qg5 {[%clk 0:00:12]} 32.
Rh1 {[%clk 0:00:29.5]} 32... Rf4 {[%clk 0:00:12.1]} 33. Rh5 {[%clk 0:00:29]}
33... Qd8 {[%clk 0:00:11.6]} 34. Qd3 {[%clk 0:00:28.6]} 34... R8f6 {[%clk
0:00:11.3]} 35. Bf5 {[%clk 0:00:26.4]} 35... Qc7 {[%clk 0:00:11.1]} 36. Bh7+
{[%clk 0:00:26]} 36... Kf8 {[%clk 0:00:11.1]} 37. Be4 {[%clk 0:00:25.6]} 37...
Rf7 {[%clk 0:00:10.8]} 38. Bg6 {[%clk 0:00:25.1]} 38... R7f6 {[%clk 0:00:10.8]}
39. Be4 {[%clk 0:00:24.5]} 39... Qc5 {[%clk 0:00:10.5]} 40. Qd2 {[%clk
0:00:22.9]} 40... Rf7 {[%clk 0:00:10.6]} 41. b4 {[%clk 0:00:22.8]} 41... Qc4
{[%clk 0:00:09.6]} 42. Rh1 {[%clk 0:00:21.9]} 42... Rc7 {[%clk 0:00:09.7]} 43.
g5 {[%clk 0:00:20.5]} 43... hxg5 {[%clk 0:00:08.9]} 44. Rh5 {[%clk 0:00:20.4]}
44... Qc3 {[%clk 0:00:09.2]} 45. Qf2 {[%clk 0:00:20.3]} 45... Qd4 {[%clk
0:00:06.9]} 46. Qg3 {[%clk 0:00:18.5]} 46... Bf6 {[%clk 0:00:07.2]} 47. Qh3
{[%clk 0:00:17.9]} 47... Rg7 {[%clk 0:00:07.3]} 48. Qc8+ {[%clk 0:00:17.6]}
48... Kf7 {[%clk 0:00:07.4]} 49. Qe6+ {[%clk 0:00:17.4]} 1-0

[Event "*** Titled Tuesday Blitz"]
[Site "Chess.com"]
[Date "2020.04.14"]
[Round "8"]
[White "eCztery"]
[Black "shyam"]
[Result "0-1"]
[WhiteElo "2416"]
[BlackElo "2638"]
[TimeControl "180+1"]
[EndTime "11:30:12 PDT"]
[Termination "shyam won by resignation"]

1. e4 {[%clk 0:03:00.9]} 1... c5 {[%clk 0:02:59.4]} 2. Nf3 {[%clk 0:02:56.7]}
2... Nc6 {[%clk 0:02:58.9]} 3. Bb5 {[%clk 0:02:52.7]} 3... Nf6 {[%clk
0:02:58.8]} 4. O-O {[%clk 0:02:46.5]} 4... Nxe4 {[%clk 0:02:57.7]} 5. d4 {[%clk
0:02:41.8]} 5... cxd4 {[%clk 0:02:54.5]} 6. Nxd4 {[%clk 0:02:42.7]} 6... Qb6
{[%clk 0:02:48.7]} 7. Bxc6 {[%clk 0:02:29.4]} 7... dxc6 {[%clk 0:02:46.2]} 8.
Be3 {[%clk 0:02:21.9]} 8... Qxb2 {[%clk 0:02:34.2]} 9. Nb3 {[%clk 0:02:19.9]}
9... Qf6 {[%clk 0:02:30]} 10. N1d2 {[%clk 0:01:55.9]} 10... Nc3 {[%clk 0:02:08]}
11. Qe1 {[%clk 0:01:43.2]} 11... Qg6 {[%clk 0:02:07.3]} 12. Bf4 {[%clk
0:01:01.2]} 12... f6 {[%clk 0:01:57.4]} 13. Nc4 {[%clk 0:00:57.1]} 13... Ne4
{[%clk 0:01:19.7]} 14. f3 {[%clk 0:00:46.2]} 14... Be6 {[%clk 0:00:54.3]} 15.
Nca5 {[%clk 0:00:36.5]} 15... Bxb3 {[%clk 0:00:40.1]} 16. axb3 {[%clk
0:00:33.1]} 16... Nc5 {[%clk 0:00:39]} 17. Qb4 {[%clk 0:00:27]} 17... e5 {[%clk
0:00:37.4]} 18. Be3 {[%clk 0:00:24.1]} 18... b6 {[%clk 0:00:30.1]} 19. Nxc6
{[%clk 0:00:22.7]} 19... Qf7 {[%clk 0:00:28.6]} 20. Qxb6 {[%clk 0:00:17.7]}
20... axb6 {[%clk 0:00:26.6]} 21. Rxa8+ {[%clk 0:00:18.6]} 21... Kd7 {[%clk
0:00:27]} 22. Ra7+ {[%clk 0:00:17.7]} 22... Ke8 {[%clk 0:00:23.6]} 23. Ra8+
{[%clk 0:00:10.5]} 23... Kd7 {[%clk 0:00:24]} 24. Ra7+ {[%clk 0:00:07.1]} 24...
Kxc6 {[%clk 0:00:24.5]} 25. Rxf7 {[%clk 0:00:06.9]} 25... Ne6 {[%clk 0:00:25.2]}
26. f4 {[%clk 0:00:06.5]} 26... exf4 {[%clk 0:00:24.4]} 27. Bxf4 {[%clk
0:00:07.4]} 27... Bc5+ {[%clk 0:00:25.1]} 28. Kh1 {[%clk 0:00:07.4]} 28... Rd8
{[%clk 0:00:26]} 29. c3 {[%clk 0:00:05.7]} 29... Nxf4 {[%clk 0:00:25.7]} 30. b4
{[%clk 0:00:06.6]} 30... Be3 {[%clk 0:00:23.4]} 31. Rxg7 {[%clk 0:00:05.6]}
31... h5 {[%clk 0:00:22.2]} 32. g3 {[%clk 0:00:05.4]} 32... Nd5 {[%clk 0:00:22]}
33. Rg6 {[%clk 0:00:04.4]} 33... Nxc3 {[%clk 0:00:18.4]} 34. Rfxf6+ {[%clk
0:00:03.8]} 34... Kb5 {[%clk 0:00:18.9]} 35. Rf5+ {[%clk 0:00:04]} 35... Kxb4
{[%clk 0:00:18.5]} 36. Rxh5 {[%clk 0:00:04.9]} 36... b5 {[%clk 0:00:17.9]} 37.
Kg2 {[%clk 0:00:05.8]} 37... Rd2+ {[%clk 0:00:17.6]} 38. Kh3 {[%clk 0:00:05.5]}
38... Bg1 {[%clk 0:00:17.9]} 39. Rg4+ {[%clk 0:00:06.4]} 39... Kb3 {[%clk
0:00:17.5]} 40. Rf4 {[%clk 0:00:04.3]} 40... Rxh2+ {[%clk 0:00:17.3]} 41. Kg4
{[%clk 0:00:05.2]} 41... Rd2 {[%clk 0:00:17]} 42. Rf3 {[%clk 0:00:04]} 42... b4
{[%clk 0:00:17.2]} 43. Rc5 {[%clk 0:00:03.3]} 43... Bxc5 {[%clk 0:00:16.3]} 44.
Kh5 {[%clk 0:00:03.3]} 44... Rd5+ {[%clk 0:00:16.1]} 0-1

[Event "*** Titled Tuesday Blitz"]
[Site "Chess.com"]
[Date "2020.04.14"]
[Round "8"]
[White "Budisavljevic"]
[Black "Ovsiannikov_Maxim"]
[Result "1-0"]
[WhiteElo "2419"]
[BlackElo "2225"]
[TimeControl "180+1"]
[EndTime "11:30:14 PDT"]
[Termination "Budisavljevic won by resignation"]

1. d4 {[%clk 0:03:00.9]} 1... d5 {[%clk 0:02:59.8]} 2. Bf4 {[%clk 0:02:59.7]}
2... Nc6 {[%clk 0:02:59.7]} 3. e3 {[%clk 0:02:58.8]} 3... Bf5 {[%clk 0:02:59.2]}
4. a3 {[%clk 0:02:54.9]} 4... Nf6 {[%clk 0:02:57.9]} 5. c4 {[%clk 0:02:52.5]}
5... dxc4 {[%clk 0:02:55.7]} 6. Bxc4 {[%clk 0:02:50.1]} 6... e5 {[%clk 0:02:56]}
7. dxe5 {[%clk 0:02:36.7]} 7... Qxd1+ {[%clk 0:02:55.6]} 8. Kxd1 {[%clk
0:02:36.5]} 8... Ng4 {[%clk 0:02:53.3]} 9. Ke2 {[%clk 0:02:34.9]} 9... Ngxe5
{[%clk 0:02:50.3]} 10. Bb5 {[%clk 0:02:33]} 10... O-O-O {[%clk 0:02:45.9]} 11.
Nc3 {[%clk 0:02:26]} 11... a6 {[%clk 0:02:45.4]} 12. Bxc6 {[%clk 0:02:24.6]}
12... Bd3+ {[%clk 0:02:45]} 13. Ke1 {[%clk 0:02:22.3]} 13... Nxc6 {[%clk
0:02:45.2]} 14. Nf3 {[%clk 0:02:16.4]} 14... f6 {[%clk 0:02:44.3]} 15. Rd1
{[%clk 0:02:00.6]} 15... g5 {[%clk 0:02:41.1]} 16. Bg3 {[%clk 0:01:58]} 16... h5
{[%clk 0:02:41.6]} 17. h4 {[%clk 0:01:48.7]} 17... g4 {[%clk 0:02:39.4]} 18. Nd2
{[%clk 0:01:43]} 18... Bh6 {[%clk 0:02:27.6]} 19. Nb3 {[%clk 0:01:30.7]} 19...
Rhe8 {[%clk 0:02:25.8]} 20. Nc5 {[%clk 0:01:17.8]} 20... Bc4 {[%clk 0:02:10.9]}
21. b3 {[%clk 0:01:06.7]} 21... Bf7 {[%clk 0:01:55.9]} 22. Rxd8+ {[%clk
0:01:00]} 22... Rxd8 {[%clk 0:01:55.1]} 23. Ke2 {[%clk 0:00:56.8]} 23... b6
{[%clk 0:01:53.6]} 24. Nxa6 {[%clk 0:00:54.1]} 24... Bxb3 {[%clk 0:01:53.9]} 25.
Nxc7 {[%clk 0:00:52.6]} 25... Bc4+ {[%clk 0:01:53.6]} 26. Ke1 {[%clk 0:00:50.7]}
26... Rd7 {[%clk 0:01:52.4]} 27. N7b5 {[%clk 0:00:48.3]} 27... f5 {[%clk
0:01:45.2]} 28. Nd6+ {[%clk 0:00:44.7]} 28... Rxd6 {[%clk 0:01:39]} 29. Bxd6
{[%clk 0:00:45.6]} 29... Bg7 {[%clk 0:01:38.3]} 30. Kd2 {[%clk 0:00:44.7]} 30...
Na5 {[%clk 0:01:35]} 31. Bb4 {[%clk 0:00:41.7]} 31... Nb3+ {[%clk 0:01:34.8]}
32. Kc2 {[%clk 0:00:41.6]} 32... b5 {[%clk 0:01:33.4]} 33. Nxb5 {[%clk
0:00:35.3]} 33... Bxb5 {[%clk 0:01:27.1]} 34. Kxb3 {[%clk 0:00:34.2]} 34... Bc6
{[%clk 0:01:27.7]} 35. Rg1 {[%clk 0:00:30.8]} 35... Bd5+ {[%clk 0:01:25.4]} 36.
Kc2 {[%clk 0:00:27.2]} 36... Be4+ {[%clk 0:01:25.2]} 37. Kd2 {[%clk 0:00:26.9]}
37... Kd7 {[%clk 0:01:23.9]} 38. g3 {[%clk 0:00:26]} 38... Kc6 {[%clk
0:01:23.5]} 39. Rc1+ {[%clk 0:00:25.6]} 39... Kb5 {[%clk 0:01:23.7]} 40. Rc5+
{[%clk 0:00:24.8]} 40... Ka4 {[%clk 0:01:24.1]} 41. Rc7 {[%clk 0:00:24.1]} 41...
Be5 {[%clk 0:01:23.5]} 42. Re7 {[%clk 0:00:23.1]} 42... Bb2 {[%clk 0:01:21]} 43.
Rh7 {[%clk 0:00:22.2]} 43... Be5 {[%clk 0:01:17.1]} 44. Rxh5 {[%clk 0:00:21.2]}
44... Kb3 {[%clk 0:01:16.7]} 45. Rh6 {[%clk 0:00:18.8]} 45... Kc4 {[%clk
0:01:15.6]} 46. Rb6 {[%clk 0:00:17.5]} 46... Bc7 {[%clk 0:01:07.5]} 47. Rf6
{[%clk 0:00:12.8]} 47... Be5 {[%clk 0:01:06.7]} 48. Rf8 {[%clk 0:00:12.2]} 48...
Bg7 {[%clk 0:01:03.1]} 49. Rc8+ {[%clk 0:00:11.7]} 49... Kd5 {[%clk 0:01:03.3]}
50. h5 {[%clk 0:00:12.6]} 50... Ke6 {[%clk 0:01:02]} 51. Rc7 {[%clk 0:00:11.5]}
51... Be5 {[%clk 0:00:57.9]} 52. Re7+ {[%clk 0:00:11]} 52... Kf6 {[%clk
0:00:56.1]} 53. a4 {[%clk 0:00:11.9]} 53... Bb2 {[%clk 0:00:47.1]} 54. h6 {[%clk
0:00:10.5]} 54... Kg6 {[%clk 0:00:45.2]} 55. h7 {[%clk 0:00:09.8]} 55... Bf6
{[%clk 0:00:43.7]} 56. Bc3 {[%clk 0:00:08.4]} 1-0

[Event "*** Titled Tuesday Blitz"]
[Site "Chess.com"]
[Date "2020.04.14"]
[Round "8"]
[White "Kiborg95"]
[Black "DanielRensch"]
[Result "1-0"]
[WhiteElo "2770"]
[BlackElo "2537"]
[TimeControl "180+1"]
[EndTime "11:30:15 PDT"]
[Termination "Kiborg95 won by checkmate"]

1. d3 {[%clk 0:03:00.9]} 1... d5 {[%clk 0:02:56.6]} 2. Nd2 {[%clk 0:03:01.3]}
2... Nf6 {[%clk 0:02:56.3]} 3. e4 {[%clk 0:03:01.6]} 3... e5 {[%clk 0:02:56.3]}
4. Ngf3 {[%clk 0:03:02]} 4... Nc6 {[%clk 0:02:56]} 5. c3 {[%clk 0:03:02.6]} 5...
a5 {[%clk 0:02:55.6]} 6. Be2 {[%clk 0:03:03.1]} 6... Be7 {[%clk 0:02:55.4]} 7.
O-O {[%clk 0:03:02.8]} 7... O-O {[%clk 0:02:55.5]} 8. Qc2 {[%clk 0:03:01.8]}
8... Bg4 {[%clk 0:02:51.8]} 9. Re1 {[%clk 0:03:01.1]} 9... Qd7 {[%clk
0:02:50.3]} 10. h3 {[%clk 0:03:01.1]} 10... Bh5 {[%clk 0:02:49.2]} 11. Nf1
{[%clk 0:03:01.3]} 11... Rad8 {[%clk 0:02:47.1]} 12. Ng3 {[%clk 0:03:01.3]}
12... Bg6 {[%clk 0:02:47.3]} 13. Nh4 {[%clk 0:03:00.3]} 13... Bc5 {[%clk
0:02:46.4]} 14. Bg5 {[%clk 0:02:39.7]} 14... Ne7 {[%clk 0:02:36.8]} 15. Bxf6
{[%clk 0:02:21.7]} 15... gxf6 {[%clk 0:02:37.7]} 16. Bg4 {[%clk 0:02:21.6]}
16... Qc6 {[%clk 0:02:26.9]} 17. Rad1 {[%clk 0:02:16.3]} 17... Kh8 {[%clk
0:02:16.7]} 18. Qc1 {[%clk 0:02:09]} 18... Qb6 {[%clk 0:02:15.1]} 19. Re2 {[%clk
0:02:04.6]} 19... a4 {[%clk 0:02:00.6]} 20. Rde1 {[%clk 0:01:59.1]} 20... dxe4
{[%clk 0:01:57.9]} 21. dxe4 {[%clk 0:02:00]} 21... Rd3 {[%clk 0:01:57.8]} 22.
Ngf5 {[%clk 0:01:50.8]} 22... Ng8 {[%clk 0:01:47.3]} 23. Rd2 {[%clk 0:01:35.8]}
23... Rfd8 {[%clk 0:01:46.4]} 24. Red1 {[%clk 0:01:36.4]} 24... Rxd2 {[%clk
0:01:35.3]} 25. Rxd2 {[%clk 0:01:37.3]} 25... c6 {[%clk 0:01:33.4]} 26. g3
{[%clk 0:01:20.9]} 26... Qc7 {[%clk 0:01:18.9]} 27. Qd1 {[%clk 0:01:16.3]} 27...
Rxd2 {[%clk 0:01:17.8]} 28. Qxd2 {[%clk 0:01:17.2]} 28... b5 {[%clk 0:01:18]}
29. a3 {[%clk 0:01:16.2]} 29... Bf8 {[%clk 0:01:14.1]} 30. Ng2 {[%clk
0:01:06.2]} 30... Ne7 {[%clk 0:01:08.3]} 31. Nge3 {[%clk 0:01:05.9]} 31... Nc8
{[%clk 0:01:06]} 32. h4 {[%clk 0:01:01.7]} 32... Nb6 {[%clk 0:00:56]} 33. Be2
{[%clk 0:00:29.3]} 33... Qd7 {[%clk 0:00:49]} 34. Qc2 {[%clk 0:00:29.1]} 34...
Qe6 {[%clk 0:00:45.1]} 35. h5 {[%clk 0:00:27.8]} 35... Bxf5 {[%clk 0:00:44]} 36.
Nxf5 {[%clk 0:00:28.3]} 36... Nd7 {[%clk 0:00:35.4]} 37. c4 {[%clk 0:00:25.2]}
37... Nc5 {[%clk 0:00:19.2]} 38. cxb5 {[%clk 0:00:23.9]} 38... cxb5 {[%clk
0:00:20.1]} 39. Bxb5 {[%clk 0:00:24.1]} 39... Qb6 {[%clk 0:00:19.8]} 40. Bxa4
{[%clk 0:00:21.6]} 40... Qa5 {[%clk 0:00:19.5]} 41. Bc6 {[%clk 0:00:18.9]} 41...
Qe1+ {[%clk 0:00:16.1]} 42. Kg2 {[%clk 0:00:19.4]} 42... Ne6 {[%clk 0:00:14.4]}
43. Bd5 {[%clk 0:00:19.1]} 43... Ng5 {[%clk 0:00:08.6]} 44. Qc8 {[%clk
0:00:18.8]} 44... Kg8 {[%clk 0:00:07.7]} 45. Qe8 {[%clk 0:00:18.8]} 45... Qa5
{[%clk 0:00:02]} 46. Ne7+ {[%clk 0:00:13.2]} 46... Kg7 {[%clk 0:00:01.8]} 47.
h6+ {[%clk 0:00:13.8]} 47... Kxh6 {[%clk 0:00:01.4]} 48. Qxf8+ {[%clk
0:00:14.4]} 48... Kh5 {[%clk 0:00:01.9]} 49. Bxf7+ {[%clk 0:00:13.5]} 49... Kg4
{[%clk 0:00:02.3]} 50. Qh6 {[%clk 0:00:12.1]} 50... Qd2 {[%clk 0:00:01.3]} 51.
Qh4# {[%clk 0:00:12.2]} 1-0

[Event "*** Titled Tuesday Blitz"]
[Site "Chess.com"]
[Date "2020.04.14"]
[Round "8"]
[White "vlad_Sid"]
[Black "ENEASZ"]
[Result "1-0"]
[WhiteElo "2646"]
[BlackElo "2493"]
[TimeControl "180+1"]
[EndTime "11:30:15 PDT"]
[Termination "vlad_Sid won on time"]

1. Nf3 {[%clk 0:02:56.6]} 1... d5 {[%clk 0:02:56.9]} 2. g3 {[%clk 0:02:57.5]}
2... Bg4 {[%clk 0:02:55.8]} 3. Bg2 {[%clk 0:02:19.5]} 3... Nd7 {[%clk
0:02:55.2]} 4. O-O {[%clk 0:01:54.3]} 4... Ngf6 {[%clk 0:02:52]} 5. b3 {[%clk
0:01:48.1]} 5... e5 {[%clk 0:02:50.5]} 6. Bb2 {[%clk 0:01:47.3]} 6... Bd6 {[%clk
0:02:49.1]} 7. c4 {[%clk 0:01:41.5]} 7... c6 {[%clk 0:02:49]} 8. cxd5 {[%clk
0:01:39.1]} 8... cxd5 {[%clk 0:02:49.9]} 9. d4 {[%clk 0:01:39.5]} 9... exd4
{[%clk 0:02:36.7]} 10. Nxd4 {[%clk 0:01:38.8]} 10... O-O {[%clk 0:02:31.2]} 11.
Nd2 {[%clk 0:01:37.8]} 11... Re8 {[%clk 0:02:28.1]} 12. N2f3 {[%clk 0:01:36.7]}
12... a6 {[%clk 0:02:22.9]} 13. Rc1 {[%clk 0:01:33.7]} 13... Nc5 {[%clk
0:02:18.8]} 14. h3 {[%clk 0:01:31.1]} 14... Bh5 {[%clk 0:02:18.5]} 15. Nf5
{[%clk 0:01:29.8]} 15... Bf8 {[%clk 0:02:14.5]} 16. Qd4 {[%clk 0:01:18.4]} 16...
Nce4 {[%clk 0:02:07.5]} 17. e3 {[%clk 0:01:13.4]} 17... Bg6 {[%clk 0:02:02.9]}
18. N3h4 {[%clk 0:01:11.8]} 18... Qd7 {[%clk 0:02:01.1]} 19. Nxg6 {[%clk
0:01:09.4]} 19... hxg6 {[%clk 0:02:00.3]} 20. Nh4 {[%clk 0:01:10.3]} 20... Rac8
{[%clk 0:01:50.5]} 21. Nf3 {[%clk 0:00:59.2]} 21... Rxc1 {[%clk 0:01:44.6]} 22.
Rxc1 {[%clk 0:01:00.1]} 22... Rc8 {[%clk 0:01:44.9]} 23. Rd1 {[%clk 0:00:57.9]}
23... Rc2 {[%clk 0:01:40]} 24. Nd2 {[%clk 0:00:56.8]} 24... Qf5 {[%clk
0:01:33.7]} 25. Bxe4 {[%clk 0:00:35.1]} 25... dxe4 {[%clk 0:01:18.3]} 26. Kg2
{[%clk 0:00:27.9]} 26... Qh5 {[%clk 0:00:55.5]} 27. Rc1 {[%clk 0:00:26.2]} 27...
Rxc1 {[%clk 0:00:53.8]} 28. Bxc1 {[%clk 0:00:27.1]} 28... Qd1 {[%clk 0:00:48.8]}
29. Bb2 {[%clk 0:00:25.4]} 29... g5 {[%clk 0:00:34.3]} 30. Qd8 {[%clk
0:00:23.4]} 30... g4 {[%clk 0:00:17]} 31. hxg4 {[%clk 0:00:21.6]} 31... Nxg4
{[%clk 0:00:15.7]} 32. Ba3 {[%clk 0:00:20.7]} 32... Nxe3+ {[%clk 0:00:06.8]} 33.
fxe3 {[%clk 0:00:20.5]} 33... Qe2+ {[%clk 0:00:06.5]} 34. Kg1 {[%clk 0:00:20.8]}
34... Qxe3+ {[%clk 0:00:06.1]} 35. Kf1 {[%clk 0:00:20.8]} 35... Qd3+ {[%clk
0:00:03]} 36. Qxd3 {[%clk 0:00:20.6]} 36... exd3 {[%clk 0:00:03.9]} 37. Bxf8
{[%clk 0:00:20.9]} 37... Kxf8 {[%clk 0:00:04.8]} 38. Kf2 {[%clk 0:00:21.8]}
38... Ke7 {[%clk 0:00:05.3]} 39. Ke3 {[%clk 0:00:22.3]} 39... Ke6 {[%clk
0:00:05.9]} 40. Kxd3 {[%clk 0:00:22.7]} 40... Kf5 {[%clk 0:00:06.7]} 41. Ke3
{[%clk 0:00:23.1]} 41... Kg4 {[%clk 0:00:07.1]} 42. Kf2 {[%clk 0:00:23.3]} 42...
f5 {[%clk 0:00:07.7]} 43. Nc4 {[%clk 0:00:22.8]} 43... g5 {[%clk 0:00:07.2]} 44.
Ne5+ {[%clk 0:00:22]} 44... Kh3 {[%clk 0:00:06.9]} 45. Nc4 {[%clk 0:00:16.9]}
45... Kh2 {[%clk 0:00:02.9]} 46. Ne3 {[%clk 0:00:16.1]} 46... f4 {[%clk
0:00:01.8]} 47. gxf4 {[%clk 0:00:17]} 47... gxf4 {[%clk 0:00:02.3]} 48. Nd5
{[%clk 0:00:17.3]} 1-0